bitfinex/quotes_ETHUSD_20250210
["timestamp","ask_amount","ask_price","bid_price","bid_amount"]
[1739211687907,7.46953,2677.6,2677.4,0.8014]
[1739211688144,3.73476,2677.6,2677.4,0.8014]
[1739211688314,3.73399,2678.1,2677.5,0.75955043]
[1739211688514,3.73315,2678.8,2678.1,3.73395]
[1739211688714,4.51001,2678.9,2677.9,0.8014]
[1739211688918,3.73361,2678.4,2677.9,0.8014]
[1739211689386,3.73361,2678.4,2677.9,4.53566]
[1739211689509,3.73311,2678.8,2678.1,3.73392]
[1739211689711,0.7771,2678.9,2677.5,3.82732428]
[1739211689712,3.73286,2679.0,2678.5,4.53475]
[1739211689940,3.73286,2679.0,2678.5,0.8014]
[1739211689941,3.73288,2678.9,2678.5,0.8014]
[1739211690660,3.73286,2679.0,2678.5,0.8014]
[1739211690942,3.73255,2679.2,2678.6,3.73328]
[1739211691241,3.73293,2678.9,2678.5,0.8014]
[1739211691948,3.73281,2679.0,2678.5,0.8014]
[1739211692240,3.73295,2678.9,2678.5,0.8014]
[1739211692447,3.73307,2678.8,2678.5,0.8014]
[1739211693163,3.73318,2678.7,2678.5,0.8014]
[1739211693522,3.73295,2678.9,2678.5,0.8014]
[1739211694533,3.73303,2678.8,2678.5,0.8014]
[1739211695762,3.73295,2678.9,2678.5,0.8014]
[1739211695763,7.46591,2678.9,2678.5,0.8014]
[1739211696061,3.73301,2678.8,2678.5,0.8014]
[1739211696749,3.73295,2678.9,2678.5,0.8014]
[1739211696750,3.7332,2678.7,2678.5,0.8014]
[1739211697060,3.73295,2678.9,2678.5,0.8014]
[1739211697427,0.7771,2679.3,2678.5,0.8014]
[1739211697428,3.73329,2678.6,2678.5,0.8014]
[1739211697630,3.73312,2678.8,2678.5,0.8014]
[1739211697836,7.46622,2678.8,2678.5,0.8014]
[1739211698041,3.73273,2679.0,2678.2,1.56197705]
[1739211698261,3.73336,2678.6,2678.2,1.56197705]
[1739211698461,3.7332,2678.7,2678.2,5.29581705]
[1739211698640,3.73301,2678.8,2678.3,3.73364]
[1739211698843,3.73301,2678.8,2678.2,9.02958705]
[1739211699042,3.73301,2678.8,2678.3,3.73361]
[1739211699243,3.73268,2679.1,2678.4,3.73347]
[1739211699443,0.7771,2679.3,2678.5,0.8014]
[1739211699444,3.7329,2678.9,2678.5,0.8014]
[1739211699961,3.73308,2678.8,2678.5,0.8014]
[1739211700143,3.7329,2678.9,2678.5,0.8014]
[1739211700666,7.46585,2678.9,2678.5,0.8014]
[1739211701070,3.73308,2678.8,2678.5,0.8014]
[1739211702568,3.73351,2678.5,2678.2,1.56197705]
[1739211702769,7.4649,2679.2,2678.2,1.56197705]
[1739211702770,3.73329,2678.6,2678.2,1.56197705]
[1739211702970,3.73349,2678.5,2678.2,1.56197705]
[1739211703571,3.73329,2678.6,2678.2,1.56197705]
[1739211704408,3.73351,2678.5,2678.2,1.56197705]
[1739211705238,3.73371,2678.3,2678.2,0.8014]
[1739211705637,7.46574,2678.9,2678.2,0.8014]
[1739211705838,3.73324,2678.7,2678.2,0.8014]
[1739211706042,0.7771,2679.1,2678.2,0.8014]
[1739211706243,3.73364,2678.4,2678.2,0.8014]
[1739211706467,3.73346,2678.5,2678.2,0.8014]
[1739211706661,3.73336,2678.6,2678.2,0.8014]
[1739211706662,3.73357,2678.4,2678.2,0.8014]
[1739211707264,3.73336,2678.6,2678.2,0.8014]
[1739211707265,3.73345,2678.5,2678.2,0.8014]
[1739211707571,3.73358,2678.4,2678.2,0.8014]
[1739211707953,3.73336,2678.6,2678.2,0.8014]
[1739211708149,3.73284,2679.0,2678.2,0.8014]
[1739211708468,3.73284,2679.0,2678.5,4.53296]
[1739211709374,7.46571,2679.0,2678.5,4.53296]
[1739211710163,3.73284,2679.0,2678.5,4.53296]
[1739211710742,3.73283,2679.0,2678.5,4.53296]
[1739211710969,3.73283,2679.0,2678.6,0.74654425]
[1739211713346,3.73254,2679.2,2678.7,3.77035799]
[1739211713669,3.73221,2679.4,2678.9,3.73281]
[1739211713876,3.73221,2679.4,2678.9,0.03732468]
[1739211713877,3.73234,2679.3,2678.9,0.03732468]
[1739211714054,3.73234,2679.3,2678.9,3.77019468]
[1739211714579,3.73234,2679.3,2678.9,0.03732468]
[1739211714783,3.73221,2679.4,2678.8,0.7996]
[1739211715084,7.46533,2679.1,2678.8,0.7996]
[1739211715788,3.73261,2679.1,2678.8,0.7996]
[1739211716150,3.73261,2679.1,2678.4,3.73348]
[1739211716151,3.73332,2678.6,2678.5,0.7507]
[1739211716474,3.73372,2678.3,2678.0,0.7507]
[1739211716672,3.73301,2678.8,2678.0,0.7507]
[1739211716987,3.73301,2678.8,2678.1,0.74608625]
[1739211716988,3.73371,2678.4,2678.1,0.74608625]
[1739211717151,3.73385,2678.2,2678.1,0.74608625]
[1739211717972,3.73371,2678.4,2678.1,0.74608625]
[1739211718175,3.73378,2678.3,2678.0,0.7507]
[1739211718387,3.73399,2678.1,2677.8,1.48602323]
[1739211718585,3.73378,2678.3,2677.8,1.48602323]
[1739211718909,3.73308,2678.8,2678.3,3.73364]
[1739211719072,0.7611,2679.0,2678.1,0.7507]
[1739211719073,3.73377,2678.3,2678.1,0.7507]
[1739211719710,3.73377,2678.3,2677.8,1.48602323]
[1739211719912,3.73385,2678.2,2677.8,1.48602323]
[1739211720603,3.73409,2678.1,2677.8,1.48602323]
[1739211720805,0.7611,2678.5,2677.8,0.73532323]
[1739211721013,0.7611,2678.5,2677.5,0.7507]
[1739211721305,3.7345,2677.8,2677.5,0.7507]
[1739211722150,3.7345,2677.8,2677.3,3.96302871]
[1739211722488,3.73462,2677.7,2677.4,0.75625289]
[1739211722888,0.7945,2678.0,2677.4,0.75625289]
[1739211722889,3.73434,2677.9,2677.4,4.49120289]
[1739211723056,3.73422,2678.0,2677.4,4.49120289]
[1739211723271,3.73432,2677.9,2677.4,4.49120289]
[1739211723471,3.73422,2678.0,2677.4,8.22609289]
[1739211723666,4.52781,2678.6,2678.0,4.54536]
[1739211723910,4.52781,2678.6,2678.0,0.8113]
[1739211724120,3.73383,2678.3,2678.0,0.8113]
[1739211724572,7.46765,2678.3,2678.0,0.8113]
[1739211724801,3.73443,2677.8,2677.6,0.8113]
[1739211725588,3.73454,2677.7,2677.4,1.56755289]
[1739211725923,3.73427,2677.9,2677.4,1.56755289]
[1739211725924,3.73441,2677.8,2677.4,1.56755289]
[1739211726294,4.52857,2678.1,2677.5,3.73475]
[1739211726502,7.46815,2678.1,2677.6,0.03734354]
[1739211726705,3.73407,2678.1,2677.4,5.30242289]
[1739211726920,3.73413,2678.0,2677.5,3.73473]
[1739211728004,3.73439,2677.9,2677.4,1.56755289]
[1739211728185,3.73449,2677.8,2677.4,1.56755289]
[1739211728381,0.7945,2678.0,2677.3,0.22799871]
[1739211728604,3.73469,2677.6,2677.3,0.22799871]
[1739211728807,0.7945,2678.0,2677.3,0.22799871]
[1739211728808,3.73496,2677.4,2677.3,0.22799871]
[1739211729105,3.73548,2677.1,2676.6,6.2013]
[1739211729307,7.47099,2677.1,2676.6,0.8113]
[1739211729474,3.73548,2677.1,2676.6,5.29691563]
[1739211730211,3.73581,2676.8,2676.4,0.281]
[1739211731115,0.7945,2677.0,2676.3,1.56566143]
[1739211731271,3.73588,2676.8,2676.3,1.56566143]
[1739211731608,3.73604,2676.7,2676.3,0.8113]
[1739211731794,7.47207,2676.7,2676.3,0.8113]
[1739211732108,3.73603,2676.7,2676.3,0.8113]
[1739211732508,3.73582,2676.8,2676.3,0.8113]
[1739211733279,3.73609,2676.6,2676.3,0.8113]
[1739211733607,3.73609,2676.6,2676.0,12.87586818]
[1739211733608,3.73645,2676.4,2676.0,1.20032818]
[1739211733771,3.73635,2676.5,2676.0,1.20032818]
[1739211733979,3.73635,2676.5,2676.0,4.93714818]
[1739211734178,3.73575,2676.9,2676.1,0.03736237]
[1739211734485,3.73575,2676.9,2676.3,3.7364]
[1739211734676,7.47154,2676.9,2676.3,3.7364]
[1739211734878,3.73575,2676.9,2676.0,2.12488916]
[1739211735091,3.73575,2676.9,2676.4,3.73628]
[1739211735292,3.73575,2676.9,2676.3,3.73637]
[1739211735494,3.73575,2676.9,2676.4,3.73636]
[1739211735695,3.73575,2676.9,2676.5,0.8186]
[1739211737673,0.7945,2677.0,2676.5,4.55481]
[1739211737879,3.7355,2677.1,2676.5,8.29092]
[1739211738179,3.7355,2677.1,2676.6,3.73601]
[1739211738380,3.73524,2677.2,2676.5,4.55471]
[1739211738575,3.73562,2677.0,2676.5,4.55471]
[1739211738781,3.73567,2676.9,2676.5,4.55471]
[1739211739004,3.73567,2676.9,2676.5,0.8186]
[1739211739214,3.73597,2676.7,2676.5,0.8186]
[1739211739377,3.73637,2676.4,2676.0,1.92998058]
[1739211739786,3.73637,2676.4,2676.0,1.19972818]
[1739211740789,3.73616,2676.6,2676.0,4.93651818]
[1739211740993,0.8297,2677.0,2676.1,3.73678]
[1739211740994,3.73597,2676.7,2676.1,3.73678]
[1739211741194,3.73597,2676.7,2676.2,0.03736255]
[1739211742031,0.8297,2677.0,2676.2,0.03736255]
[1739211742334,3.73617,2676.6,2676.2,0.03736259]
[1739211743719,3.0,2677.0,2676.0,1.19972818]
[1739211743925,3.73678,2676.1,2676.0,0.8107]
[1739211744221,7.47377,2676.1,2675.6,1.19728426]
[1739211744434,3.73704,2676.0,2675.7,0.75686794]
[1739211744626,3.73687,2676.1,2675.7,0.75686794]
[1739211744814,3.73707,2675.9,2675.7,0.75686794]
[1739211744990,3.73687,2676.1,2675.7,0.75686794]
[1739211745187,0.8297,2676.5,2676.0,3.73684]
[1739211745188,3.73628,2676.5,2676.0,3.73684]
[1739211745496,7.47261,2676.5,2675.9,3.73692]
[1739211745694,3.73636,2676.4,2675.9,3.73692]
[1739211746100,3.73658,2676.3,2675.8,0.8107]
[1739211746300,3.73658,2676.3,2675.8,4.54788]
[1739211746518,0.8297,2676.7,2675.8,0.8107]
[1739211746725,3.73672,2676.2,2675.8,0.8107]
[1739211747139,3.73685,2676.1,2675.8,0.8107]
[1739211747703,3.73672,2676.2,2675.8,0.8107]
[1739211747960,7.47346,2676.2,2675.8,0.8107]
[1739211748514,3.73672,2676.2,2675.8,0.8107]
[1739211748812,7.47347,2676.2,2675.8,0.8107]
[1739211749008,3.73672,2676.2,2675.8,0.8107]
[1739211749238,3.73692,2676.0,2675.8,0.8107]
[1739211749467,3.73682,2676.1,2675.8,0.8107]
[1739211751045,3.73672,2676.2,2675.8,0.8107]
[1739211751211,3.7368,2676.1,2675.8,0.8107]
[1739211751559,3.73678,2676.1,2675.8,0.8107]
[1739211752266,3.73672,2676.2,2675.8,0.8107]
[1739211752431,3.73615,2676.6,2675.8,0.8107]
[1739211752432,3.73685,2676.1,2675.8,0.8107]
[1739211753730,3.73671,2676.2,2675.8,0.8107]
[1739211754259,4.56573,2676.7,2676.3,3.73648]
[1739211754422,3.73581,2676.8,2676.3,4.54718]
[1739211754619,0.2488,2676.9,2676.4,3.73629]
[1739211755314,0.2488,2676.9,2676.4,3.73636]
[1739211755506,0.2488,2676.9,2676.5,3.73611]
[1739211756450,0.2488,2676.9,2676.6,3.73608]
[1739211757436,0.2488,2676.9,2676.3,0.8107]
[1739211757642,3.73584,2676.8,2676.3,4.5471]
[1739211758041,7.72038,2676.9,2676.3,4.5471]
[1739211758246,3.98459,2676.9,2676.3,4.5471]
[1739211758423,3.98459,2676.9,2676.4,7.47256]
[1739211758623,0.2488,2676.9,2676.8,3.7358]
[1739211758832,0.8297,2677.7,2677.6,3.73468]
[1739211759154,0.8297,2677.7,2677.0,3.73552]
[1739211759155,0.8297,2678.2,2677.8,3.73429]
[1739211759373,3.73299,2678.9,2678.0,3.73399]
[1739211759374,7.46648,2678.7,2678.0,3.73399]
[1739211759521,7.4665,2678.7,2678.0,3.73399]
[1739211759720,3.8297,2678.9,2677.8,4.54498]
[1739211759721,3.73346,2678.5,2677.8,4.54498]
[1739211759920,0.8297,2678.9,2678.3,3.73363]
[1739211760157,4.56267,2678.9,2678.3,3.73363]
[1739211760355,3.73285,2679.0,2678.4,0.8107]
[1739211760671,3.73326,2678.7,2678.1,3.73392]
[1739211760887,3.73326,2678.7,2678.1,4.54462]
[1739211761859,7.46593,2678.9,2678.2,3.7338]
[1739211762195,0.8297,2679.2,2678.1,1.5468165]
[1739211762398,3.73269,2679.1,2678.4,3.73348]
[1739211762594,3.73283,2679.0,2678.4,3.73348]
[1739211762747,3.73269,2679.1,2678.4,3.73348]
[1739211762946,3.7328,2679.0,2678.4,3.73348]
[1739211763746,3.7329,2678.9,2678.4,3.73348]
[1739211764157,3.73269,2679.1,2678.4,3.73348]
[1739211765091,3.73287,2678.9,2678.4,3.73348]
[1739211766363,0.8215,2679.5,2678.5,0.84693179]
[1739211766607,4.55354,2679.5,2678.6,0.0373238]
[1739211766888,3.73245,2679.3,2678.7,3.73312]
[1739211767176,3.73217,2679.4,2678.6,7.46648]
[1739211767380,3.73245,2679.3,2678.6,7.46648]
[1739211767681,3.73188,2679.7,2679.1,4.54209]
[1739211767848,3.73188,2679.7,2679.1,4.54216]
[1739211768353,3.73188,2679.7,2679.1,4.54218]
[1739211768744,3.73188,2679.7,2679.2,3.73243]
[1739211768946,3.73188,2679.7,2679.1,0.8096]
[1739211768947,3.73187,2679.7,2679.1,4.54206]
[1739211769141,3.73187,2679.7,2679.2,3.73242]
[1739211769343,3.73151,2679.9,2679.4,3.73207]
[1739211769684,3.7314,2680.0,2679.4,7.46413]
[1739211769992,3.73151,2679.9,2679.2,3.73237]
[1739211771268,3.73136,2680.0,2679.4,3.73208]
[1739211771478,0.8215,2680.4,2679.8,3.73162]
[1739211771683,0.8215,2680.8,2680.0,2.497383]
[1739211771857,2.497383,2681.5,2680.0,2.497383]
[1739211771858,3.72995,2681.1,2680.4,3.73072]
[1739211772059,3.73003,2681.0,2680.4,3.76802427]
[1739211772379,3.73011,2680.9,2680.4,3.73072]
[1739211772561,0.8215,2683.0,2681.0,0.0075]
[1739211772747,0.8215,2683.0,2681.9,2.497383]
[1739211773081,0.8215,2683.0,2681.9,6.226003]
[1739211773082,3.72786,2682.6,2681.9,6.226003]
[1739211773289,3.72786,2682.6,2681.6,0.284]
[1739211773290,3.0,2682.6,2681.6,2.497383]
[1739211773448,3.72814,2682.3,2681.3,3.306983]
[1739211773654,0.8215,2682.4,2681.3,3.306983]
[1739211773655,3.72872,2681.9,2681.3,3.306983]
[1739211774094,3.72872,2681.9,2681.3,0.8096]
[1739211774291,3.72898,2681.7,2681.3,0.8096]
[1739211774458,3.72872,2681.9,2681.3,0.8096]
[1739211774786,3.72816,2682.3,2681.3,3.34427387]
[1739211774954,3.72816,2682.3,2681.5,3.72924]
[1739211775157,3.72816,2682.3,2681.6,0.03728808]
[1739211775370,3.72816,2682.3,2681.7,3.72888]
[1739211775888,3.72844,2682.1,2681.3,7.59986937]
[1739211776280,3.72869,2682.0,2681.3,7.59986937]
[1739211776480,3.72871,2681.9,2681.3,4.53905]
[1739211776791,3.72899,2681.7,2681.0,7.66844419]
[1739211776994,3.72899,2681.7,2681.0,8.40527724]
[1739211777294,3.72893,2681.8,2681.1,0.03729255]
[1739211777495,3.72893,2681.8,2681.2,3.72967]
[1739211777698,3.72835,2682.2,2681.3,0.0372908]
[1739211777860,3.72835,2682.2,2681.5,3.72911]
[1739211778054,4.54955,2682.4,2681.5,3.72911]
[1739211778253,3.72816,2682.3,2681.7,3.72896]
[1739211778456,0.8215,2682.4,2682.1,3.72832]
[1739211778658,1e-05,2682.5,2682.3,0.3859]
[1739211779180,6.728,2682.4,2682.3,0.3859]
[1739211780379,7.5495,2682.4,2682.3,0.3859]
[1739211780989,7.5495,2682.4,2681.1,9.11976]
[1739211780990,3.72967,2681.2,2681.1,0.8096]
[1739211781160,0.8215,2681.5,2681.0,0.06820482]
[1739211781361,3.72975,2681.2,2681.0,0.06820482]
[1739211781669,3.72975,2681.2,2680.7,0.8096]
[1739211781989,3.72945,2681.4,2680.8,3.73021]
[1739211782192,3.72891,2681.8,2680.9,0.03729771]
[1739211782372,3.72903,2681.7,2681.1,3.72969]
[1739211782569,3.72905,2681.7,2681.1,3.72969]
[1739211782970,3.72905,2681.7,2680.9,3.73003]
[1739211782971,0.7555,2681.9,2680.7,7.60070937]
[1739211783158,3.72973,2681.2,2680.7,0.8096]
[1739211783368,3.72973,2681.2,2680.7,4.53991]
[1739211783602,3.72946,2681.4,2680.7,4.53991]
[1739211783803,0.7555,2681.9,2680.9,3.72998]
[1739211784009,3.72955,2681.3,2680.8,3.73011]
[1739211784205,3.72955,2681.3,2680.7,7.60072937]
[1739211784410,3.72955,2681.3,2680.7,0.8096]
[1739211784771,3.72981,2681.2,2680.7,0.8096]
[1739211785094,3.72939,2681.5,2680.8,0.03729771]
[1739211785297,3.72939,2681.5,2680.9,3.73007]
[1739211785481,3.72955,2681.3,2680.8,3.73019]
[1739211785885,7.45872,2681.5,2680.9,3.73006]
[1739211786212,3.72912,2681.6,2681.1,3.72978]
[1739211786368,3.7555,2681.9,2681.2,0.7998]
[1739211786572,3.72955,2681.3,2680.8,4.53]
[1739211786805,3.72957,2681.3,2680.8,4.52999]
[1739211787207,3.72928,2681.5,2680.8,0.7998]
[1739211787512,3.72956,2681.3,2680.8,4.53]
[1739211787806,3.72967,2681.2,2680.8,0.7998]
[1739211788008,3.72971,2681.2,2680.8,0.7998]
[1739211788209,3.72983,2681.1,2680.8,0.7998]
[1739211788412,3.73006,2681.0,2680.6,5.39]
[1739211788622,3.73064,2680.6,2680.1,0.7998]
[1739211788775,3.73065,2680.5,2680.1,1.53368944]
[1739211788970,3.73101,2680.3,2680.1,0.7998]
[1739211789215,3.73082,2680.4,2680.1,0.7998]
[1739211789518,3.73087,2680.4,2680.1,0.7998]
[1739211789682,3.73036,2680.8,2680.1,0.7998]
[1739211789885,3.72997,2681.0,2680.2,3.76826666]
[1739211790085,3.73009,2680.9,2680.3,3.73079]
[1739211790523,3.72997,2681.0,2680.3,3.73079]
[1739211790817,3.73018,2680.9,2680.3,3.73081]
[1739211791028,3.73037,2680.7,2680.1,0.7998]
[1739211791198,3.73061,2680.6,2680.1,0.7998]
[1739211791586,3.73037,2680.7,2680.1,4.53099]
[1739211792022,3.72981,2681.1,2680.1,0.7998]
[1739211792211,3.73072,2680.5,2680.1,0.7998]
[1739211792410,3.73106,2680.2,2680.1,0.7998]
[1739211792721,3.73139,2680.0,2679.8,0.7998]
[1739211792926,3.73203,2679.6,2679.4,0.7998]
[1739211793727,3.73166,2679.8,2679.4,0.7998]
[1739211793888,3.73178,2679.7,2679.4,0.7998]
[1739211794087,3.73198,2679.6,2679.4,0.7998]
[1739211794505,3.73203,2679.5,2679.1,0.7998]
[1739211795299,7.46415,2679.5,2679.1,0.7998]
[1739211795617,0.7555,2680.0,2679.1,0.7998]
[1739211798439,3.73263,2679.1,2678.9,0.34576055]
[1739211798639,3.73194,2679.6,2678.9,0.34576055]
[1739211798798,3.73255,2679.2,2678.9,0.34576055]
[1739211799438,3.73272,2679.1,2678.9,0.34576055]
[1739211799641,3.73272,2679.1,2678.8,1.54526595]
[1739211799839,3.73255,2679.2,2678.8,1.54526595]
[1739211800038,3.73227,2679.4,2678.8,1.54526595]
[1739211800249,3.7321,2679.5,2678.8,1.54526595]
[1739211800415,3.73191,2679.6,2679.0,3.73265]
[1739211800615,3.73207,2679.5,2679.0,3.73265]
[1739211801102,3.73207,2679.5,2679.0,7.4653]
[1739211801310,3.73207,2679.5,2679.0,3.73265]
[1739211802716,3.7323,2679.4,2678.8,5.27820595]
[1739211802918,3.73233,2679.3,2678.8,1.54526595]
[1739211803218,3.0,2679.8,2678.9,0.03732369]
[1739211803219,3.73224,2679.4,2678.9,0.03732369]
[1739211803447,3.73198,2679.6,2679.0,4.5014]
[1739211803615,3.73212,2679.5,2679.0,4.5014]
[1739211804236,3.73203,2679.5,2679.0,0.7687]
[1739211804436,0.832,2680.0,2679.0,0.7687]
[1739211804437,7.46352,2679.7,2679.0,0.7687]
[1739211804642,0.832,2679.6,2678.4,0.7687]
[1739211804950,3.73343,2678.5,2678.4,0.7687]
[1739211805343,3.7333,2678.6,2677.9,0.7687]
[1739211805344,3.73396,2678.2,2677.9,0.7687]
[1739211805515,3.73388,2678.2,2677.9,0.7687]
[1739211806255,3.7333,2678.6,2677.9,0.7687]
[1739211806256,3.73407,2678.1,2677.9,0.7687]
[1739211806546,7.46759,2678.3,2677.9,0.7687]
[1739211806731,3.73387,2678.2,2677.9,0.7687]
[1739211807048,3.73377,2678.3,2677.9,0.7687]
[1739211807257,3.73387,2678.2,2677.9,0.7687]
[1739211808151,3.73377,2678.3,2677.9,0.7687]
[1739211808740,3.734,2678.1,2677.9,0.7687]
[1739211808937,3.73426,2677.9,2677.8,0.73684052]
[1739211809143,0.832,2678.2,2677.4,3.82951937]
[1739211809144,4.56591,2678.2,2677.6,3.73467]
[1739211809648,3.73391,2678.2,2677.6,7.46923]
[1739211809951,3.73403,2678.1,2677.6,3.73456]
[1739211810115,3.73414,2678.0,2677.4,0.7687]
[1739211810316,3.73425,2678.0,2677.4,0.7687]
[1739211810525,3.73421,2678.0,2677.5,3.73482]
[1739211811659,3.73419,2678.0,2677.5,3.73482]
[1739211812221,3.73399,2678.1,2677.6,3.73466]
[1739211812426,3.73421,2678.0,2677.4,7.75203964]
[1739211812627,3.73421,2678.0,2677.5,3.73475]
[1739211812947,3.73433,2677.9,2677.4,4.01714964]
[1739211813258,7.46815,2678.1,2677.4,7.75199964]
[1739211813462,3.73416,2678.0,2677.5,3.73469]
[1739211813666,3.73407,2678.1,2677.4,7.75199964]
[1739211813842,3.73416,2678.0,2677.5,3.73479]
[1739211814243,3.73427,2677.9,2677.4,7.75199964]
[1739211814444,3.73427,2677.9,2677.4,4.01714964]
[1739211814840,3.7347,2677.6,2677.4,0.75403022]
[1739211815055,3.73492,2677.5,2677.2,5.39]
[1739211815258,3.73456,2677.7,2677.2,5.39]
[1739211815454,3.7345,2677.8,2677.3,3.7351]
[1739211815961,3.73437,2677.9,2677.4,3.73495]
[1739211817139,3.73392,2678.2,2677.7,3.73442]
[1739211817337,6.1085,2678.8,2677.9,3.73426]
[1739211817541,0.7585,2678.8,2678.1,4.56539]
[1739211817848,3.73266,2679.1,2678.1,4.56539]
[1739211817849,3.73295,2678.9,2678.1,0.8314]
[1739211818038,3.73304,2678.8,2678.1,4.56527]
[1739211818237,3.73315,2678.7,2678.2,3.73385]
[1739211818776,3.73315,2678.7,2678.2,0.73299563]
[1739211819150,7.4664,2678.7,2678.2,0.73299563]
[1739211819351,3.73331,2678.6,2678.2,0.73299563]
[1739211820039,4.49114,2679.1,2678.1,0.8314]
[1739211820243,3.73364,2678.4,2678.1,0.8314]
[1739211820452,3.73397,2678.2,2677.8,0.8314]
[1739211820655,3.73405,2678.1,2677.8,0.8314]
[1739211820841,3.73397,2678.2,2677.8,0.8314]
[1739211821575,3.734,2678.1,2677.8,1.59282625]
[1739211821775,3.73397,2678.2,2677.8,1.59282625]
[1739211821979,3.73362,2678.4,2677.9,3.77148954]
[1739211822279,3.73347,2678.5,2678.0,3.73409]
[1739211823038,3.73347,2678.5,2677.8,5.32711625]
[1739211823244,3.73365,2678.4,2677.9,3.73418]
[1739211823464,3.73365,2678.4,2677.8,9.06143625]
[1739211823678,7.46704,2678.5,2678.0,3.7341]
[1739211823981,3.73359,2678.4,2677.9,3.73426]
[1739211824338,3.73351,2678.5,2678.0,3.73411]
[1739211825445,3.73351,2678.5,2677.8,5.32711625]
[1739211825644,3.73351,2678.5,2677.8,5.32710625]
[1739211825866,3.73351,2678.5,2677.9,3.73418]
[1739211826386,3.73361,2678.4,2677.9,4.080935]
[1739211826544,3.73361,2678.4,2677.9,0.346675]
[1739211826739,3.73361,2678.4,2677.9,4.080905]
[1739211827545,3.73351,2678.5,2678.0,3.73403]
[1739211827745,3.73351,2678.5,2678.0,4.080705]
[1739211828481,3.73298,2678.9,2678.4,4.49936]
[1739211828684,3.73298,2678.9,2678.4,0.7658]
[1739211828979,3.73303,2678.8,2678.4,0.7658]
[1739211829475,4.5472,2679.1,2678.4,4.49934]
[1739211829676,3.73304,2678.8,2678.4,0.7658]
[1739211829865,3.73307,2678.8,2678.4,0.7658]
[1739211830850,3.73315,2678.7,2678.4,0.7658]
[1739211831445,3.73315,2678.7,2678.3,0.34718712]
[1739211831649,3.73315,2678.7,2678.2,3.7338]
[1739211831882,3.73315,2678.7,2678.1,4.4997]
[1739211832181,3.73315,2678.7,2678.2,3.73385]
[1739211833150,3.73315,2678.7,2678.3,0.73268724]
[1739211833581,3.73315,2678.7,2678.3,1.08049032]
[1739211834286,3.73331,2678.6,2678.3,1.08049032]
[1739211834480,3.73298,2678.9,2678.3,1.08049032]
[1739211834684,3.73321,2678.7,2678.4,0.34780308]
[1739211835981,3.73321,2678.7,2678.5,0.34780308]
[1739211836150,7.46645,2678.7,2678.5,0.34780308]
[1739211836351,3.73321,2678.7,2678.5,0.34780308]
[1739211836888,3.73329,2678.6,2678.5,0.34780308]
[1739211837380,3.73322,2678.7,2678.5,0.34780308]
[1739211838484,3.73291,2678.9,2678.5,0.34780308]
[1739211838691,7.46588,2678.9,2678.5,0.34780308]
[1739211838986,3.73304,2678.8,2678.3,8.19992724]
[1739211839187,3.73304,2678.8,2678.3,4.46630724]
[1739211839375,3.73317,2678.7,2678.3,4.46630724]
[1739211839690,3.73331,2678.6,2678.1,4.49968]
[1739211840264,3.73296,2678.9,2678.1,0.7658]
[1739211840468,0.8145,2679.1,2678.3,3.73371]
[1739211840661,3.73236,2679.3,2678.3,6.80343779]
[1739211840870,0.19036571,2680.0,2679.1,3.73251]
[1739211840871,0.7722,2679.9,2679.1,3.73251]
[1739211841098,0.7722,2679.9,2679.0,0.7824]
[1739211841403,3.73185,2679.7,2679.2,3.73236]
[1739211841583,3.73162,2679.8,2679.0,0.7824]
[1739211841783,3.73249,2679.2,2678.7,0.7576]
[1739211842122,3.73301,2678.8,2678.7,0.7576]
[1739211842256,3.73269,2679.1,2678.7,1.50815203]
[1739211842609,3.73301,2678.8,2678.7,0.75055203]
[1739211842761,3.73301,2678.8,2678.5,5.39]
[1739211842961,3.73318,2678.7,2678.5,5.39]
[1739211843606,3.73301,2678.8,2678.6,0.34728347]
[1739211844358,3.73281,2679.0,2678.6,0.34728347]
[1739211844784,3.73315,2678.7,2678.6,0.34728347]
[1739211846716,4.54672,2678.8,2678.1,0.7576]
[1739211846904,7.46705,2678.5,2678.1,0.7576]
[1739211847255,3.73379,2678.3,2678.0,0.74808606]
[1739211847396,0.8137,2678.8,2677.7,0.95187027]
[1739211847597,0.8137,2678.2,2677.7,0.7576]
[1739211847826,3.73406,2678.1,2677.7,0.7576]
[1739211848198,3.73419,2678.0,2677.8,0.7612379]
[1739211848410,3.73429,2677.9,2677.7,0.7576]
[1739211848660,0.8137,2678.2,2677.7,0.7576]
[1739211848963,0.8137,2679.2,2678.3,3.7337]
[1739211849238,2.49301788,2679.9,2678.8,3.73291]
[1739211849239,4.54595,2679.4,2678.8,3.73291]
[1739211849444,8.2782,2679.4,2678.8,3.73291]
[1739211849627,4.54595,2679.4,2678.9,3.73285]
[1739211850138,4.54595,2679.4,2678.6,0.0373271]
[1739211850139,4.54565,2679.6,2678.6,0.374]
[1739211850460,3.73215,2679.5,2678.9,3.73284]
[1739211851209,4.54565,2679.6,2678.8,0.7576]
[1739211851210,3.73244,2679.3,2678.8,0.7576]
[1739211851539,3.73246,2679.2,2678.8,0.7576]
[1739211851719,3.73244,2679.3,2678.6,3.7332]
[1739211851935,3.73248,2679.2,2678.6,7.46641]
[1739211852540,3.7323,2679.4,2678.6,4.53413317]
[1739211852840,3.73239,2679.3,2678.8,3.733]
[1739211853204,7.4648,2679.3,2678.8,3.733]
[1739211853441,3.73239,2679.3,2678.6,4.49680414]
[1739211853640,3.73255,2679.2,2678.6,4.49679414]
[1739211853817,3.73263,2679.1,2678.6,4.49679414]
[1739211854219,3.73239,2679.3,2678.7,3.73314]
[1739211854529,3.73239,2679.3,2678.8,3.733]